fUSD/lending_fUSD_20260523
["ID","MTS","AMOUNT","RATE_DAILY","PERIOD"]
[422837037,1779502242000,-1533.31215095,0.00013383,2]
[422837047,1779502242000,-150.0,0.00013461,2]
[422837030,1779502242000,-150.0,0.00013298,2]
[422837008,1779502242000,-150.0,0.00012988,2]
[422837031,1779502242000,-150.0,0.00013303,2]
[422837006,1779502242000,-150.0,0.00012988,2]
[422837009,1779502242000,-150.0,0.00013014,2]
[422837007,1779502242000,-150.0,0.00012988,2]
[422837012,1779502242000,-150.0,0.0001305,2]
[422837015,1779502242000,-150.0,0.00013102,2]
[422837014,1779502242000,-150.0,0.00013093,2]
[422837016,1779502242000,-150.0,0.00013119,2]
[422837023,1779502242000,-150.0,0.00013216,2]
[422837013,1779502242000,-150.0,0.00013067,2]
[422837017,1779502242000,-150.0,0.00013124,2]
[422837018,1779502242000,-150.0,0.00013145,2]
[422837021,1779502242000,-150.0,0.00013174,2]
[422837020,1779502242000,-150.0,0.00013172,2]
[422837019,1779502242000,-150.0,0.00013145,2]
[422837033,1779502242000,-150.0,0.00013329,2]
[422837028,1779502242000,-150.0,0.00013261,2]
[422837036,1779502242000,-150.0,0.00013382,2]
[422837024,1779502242000,-150.0,0.00013224,2]
[422837032,1779502242000,-150.0,0.00013329,2]
[422837029,1779502242000,-150.0,0.00013277,2]
[422837034,1779502242000,-150.0,0.00013356,2]
[422837027,1779502242000,-150.0,0.00013251,2]
[422837035,1779502242000,-150.0,0.00013356,2]
[422837025,1779502242000,-3761.46059186,0.00013233,2]
[422837022,1779502242000,-150.0,0.00013198,2]
[422837026,1779502242000,-150.0,0.00013251,2]
[422837124,1779502243000,-500.0,0.00013698,2]
[422837112,1779502243000,-429.9949267,0.00013698,2]
[422837123,1779502243000,-500.0,0.00013698,2]
[422837125,1779502243000,-509.17650983,0.00013698,2]
[422837113,1779502243000,-629.55339869,0.00013698,2]
[422837109,1779502243000,-500.0,0.00013698,2]
[422837107,1779502243000,-500.0,0.00013698,2]
[422837105,1779502243000,-500.0,0.00013698,2]
[422837111,1779502243000,-500.0,0.00013698,2]
[422837110,1779502243000,-500.0,0.00013698,2]
[422837102,1779502243000,-500.0,0.00013698,2]
[422837106,1779502243000,-500.0,0.00013698,2]
[422837108,1779502243000,-500.0,0.00013698,2]
[422837115,1779502243000,-500.0,0.00013698,2]
[422837132,1779502243000,-500.0,0.00013698,2]
[422837116,1779502243000,-500.0,0.00013698,2]
[422837121,1779502243000,-500.0,0.00013698,2]
[422837117,1779502243000,-500.0,0.00013698,2]
[422837118,1779502243000,-500.0,0.00013698,2]
[422837122,1779502243000,-500.0,0.00013698,2]
[422837120,1779502243000,-500.0,0.00013698,2]
[422837119,1779502243000,-543.00996997,0.00013698,2]
[422837127,1779502243000,-508.78567005,0.00013698,2]
[422837137,1779502243000,-500.0,0.00013698,2]
[422837128,1779502243000,-500.0,0.00013698,2]
[422837126,1779502243000,-500.0,0.00013698,2]
[422837131,1779502243000,-500.0,0.00013698,2]
[422837135,1779502243000,-500.0,0.00013698,2]
[422837104,1779502243000,-500.0,0.00013698,2]
[422837114,1779502243000,-500.0,0.00013698,2]
[422837101,1779502243000,-500.0,0.00013698,2]
[422837068,1779502243000,-154.5001945,0.00013671,2]
[422837100,1779502243000,-500.0,0.00013698,2]
[422837067,1779502243000,-168.29394614,0.00013671,2]
[422837066,1779502243000,-153.81319139,0.00013671,2]
[422837134,1779502243000,-500.0,0.00013698,2]
[422837072,1779502243000,-666.0,0.00013697,2]
[422837073,1779502243000,-500.0,0.00013698,2]
[422837077,1779502243000,-500.0,0.00013698,2]
[422837078,1779502243000,-500.0,0.00013698,2]
[422837069,1779502243000,-300.0,0.00013697,2]
[422837070,1779502243000,-670.38836823,0.00013697,2]
[422837071,1779502243000,-300.0,0.00013697,2]
[422837079,1779502243000,-500.0,0.00013698,2]
[422837076,1779502243000,-501.56156198,0.00013698,2]
[422837074,1779502243000,-501.29264556,0.00013698,2]
[422837080,1779502243000,-500.0,0.00013698,2]
[422837075,1779502243000,-500.0,0.00013698,2]
[422837082,1779502243000,-500.0,0.00013698,2]
[422837086,1779502243000,-500.0,0.00013698,2]
[422837085,1779502243000,-500.0,0.00013698,2]
[422837092,1779502243000,-500.0,0.00013698,2]
[422837094,1779502243000,-500.0,0.00013698,2]
[422837081,1779502243000,-367.15391185,0.00013698,2]
[422837096,1779502243000,-547.35235462,0.00013698,2]
[422837090,1779502243000,-500.0,0.00013698,2]
[422837087,1779502243000,-500.0,0.00013698,2]
[422837089,1779502243000,-500.0,0.00013698,2]
[422837083,1779502243000,-500.0,0.00013698,2]
[422837084,1779502243000,-500.0,0.00013698,2]
[422837088,1779502243000,-500.0,0.00013698,2]
[422837098,1779502243000,-500.0,0.00013698,2]
[422837103,1779502243000,-500.0,0.00013698,2]
[422837133,1779502243000,-500.0,0.00013698,2]
[422837202,1779502243000,-6024.0,0.0001399,2]
[422837130,1779502243000,-500.0,0.00013698,2]
[422837183,1779502243000,-500.0,0.00013698,2]
[422837180,1779502243000,-500.0,0.00013698,2]
[422837174,1779502243000,-500.0,0.00013698,2]
[422837175,1779502243000,-500.0,0.00013698,2]
[422837178,1779502243000,-500.0,0.00013698,2]
[422837179,1779502243000,-500.0,0.00013698,2]
[422837176,1779502243000,-592.0817962,0.00013698,2]
[422837177,1779502243000,-500.0,0.00013698,2]
[422837184,1779502243000,-500.0,0.00013698,2]
[422837186,1779502243000,-200.0,0.00013699,2]
[422837185,1779502243000,-294.81496871,0.00013698,2]
[422837187,1779502243000,-166.66,0.00013699,2]
[422837188,1779502243000,-2000.0,0.00013699,7]
[422837196,1779502243000,-166.66,0.00013836,2]
[422837194,1779502243000,-3761.46059186,0.00013789,2]
[422837195,1779502243000,-167.72,0.00013835,2]
[422837193,1779502243000,-154.23803141,0.00013785,2]
[422837191,1779502243000,-228.5837534,0.00013781,2]
[422837190,1779502243000,-1000.0,0.00013699,15]
[422837189,1779502243000,-1000.0,0.00013699,2]
[422837192,1779502243000,-500.0,0.00013784,2]
[422837198,1779502243000,-1156.0,0.00013888,5]
[422837197,1779502243000,-204.52,0.00013856,2]
[422837204,1779502243000,-1488.96,0.00014,2]
[422837200,1779502243000,-166.66,0.00013973,2]
[422837205,1779502243000,-1488.96,0.00014,2]
[422837199,1779502243000,-1533.31215095,0.00013888,2]
[422837203,1779502243000,-1488.96,0.00014,2]
[422837129,1779502243000,-500.0,0.00013698,2]
[422837172,1779502243000,-500.0,0.00013698,2]
[422837182,1779502243000,-500.0,0.00013698,2]
[422837201,1779502243000,-1613.0,0.0001399,2]
[422837181,1779502243000,-500.0,0.00013698,2]
[422837170,1779502243000,-500.0,0.00013698,2]
[422837136,1779502243000,-500.0,0.00013698,2]
[422837149,1779502243000,-500.0,0.00013698,2]
[422837150,1779502243000,-500.0,0.00013698,2]
[422837153,1779502243000,-500.0,0.00013698,2]
[422837151,1779502243000,-500.0,0.00013698,2]
[422837138,1779502243000,-500.0,0.00013698,2]
[422837144,1779502243000,-500.0,0.00013698,2]
[422837145,1779502243000,-500.0,0.00013698,2]
[422837142,1779502243000,-500.0,0.00013698,2]
[422837140,1779502243000,-523.69399517,0.00013698,2]
[422837147,1779502243000,-500.0,0.00013698,2]
[422837148,1779502243000,-500.0,0.00013698,2]
[422837146,1779502243000,-500.0,0.00013698,2]
[422837152,1779502243000,-500.0,0.00013698,2]
[422837160,1779502243000,-500.0,0.00013698,2]
[422837154,1779502243000,-500.0,0.00013698,2]
[422837171,1779502243000,-500.0,0.00013698,2]
[422837169,1779502243000,-533.61263421,0.00013698,2]
[422837164,1779502243000,-500.0,0.00013698,2]
[422837165,1779502243000,-500.0,0.00013698,2]
[422837161,1779502243000,-540.99608918,0.00013698,2]
[422837173,1779502243000,-500.0,0.00013698,2]
[422837167,1779502243000,-500.0,0.00013698,2]
[422837163,1779502243000,-500.0,0.00013698,2]
[422837159,1779502243000,-500.0,0.00013698,2]
[422837157,1779502243000,-500.0,0.00013698,2]
[422837156,1779502243000,-500.0,0.00013698,2]
[422837158,1779502243000,-500.0,0.00013698,2]
[422837162,1779502243000,-500.0,0.00013698,2]
[422837238,1779502244000,-2000.0,0.00014329,7]
[422837248,1779502244000,-5678.6523204,0.000144,4]
[422837245,1779502244000,-470.33,0.00014366,2]
[422837240,1779502244000,-150.0,0.00014358,2]
[422837239,1779502244000,-3761.46059186,0.00014344,2]
[422837243,1779502244000,-1355.0,0.00014358,2]
[422837241,1779502244000,-150.0,0.00014358,2]
[422837247,1779502244000,-1533.31215095,0.00014394,2]
[422837244,1779502244000,-3546.0,0.00014358,2]
[422837246,1779502244000,-166.66,0.00014384,2]
[422837242,1779502244000,-625.0,0.00014358,2]
[422837263,1779502244000,-304.72347666,0.00014525,2]
[422837255,1779502244000,-2400.0,0.000145,5]
[422837267,1779502244000,-400.0,0.000146,5]
[422837269,1779502244000,-400.0,0.000147,5]
[422837271,1779502244000,-4864.27744904,0.000147,2]
[422837273,1779502244000,-400.0,0.000147,5]
[422837254,1779502244000,-2100.0,0.000145,5]
[422837258,1779502244000,-271.256542,0.0001452,2]
[422837275,1779502244000,-10000.0,0.00014708,2]
[422837259,1779502244000,-507.0,0.0001452,2]
[422837261,1779502244000,-309.0,0.0001452,2]
[422837277,1779502244000,-15000.0,0.00014731,2]
[422837279,1779502244000,-6111.0,0.00014769,2]
[422837283,1779502244000,-257.8124352,0.00014776,2]
[422837250,1779502244000,-588.80980333,0.00014471,2]
[422837281,1779502244000,-2315.4522696,0.00014776,2]
[422837265,1779502244000,-400.0,0.000146,5]
[422837237,1779502244000,-1500.55181669,0.0001425,2]
[422837221,1779502244000,-1271.0,0.00014151,2]
[422837230,1779502244000,-500.0,0.00014249,2]
[422837206,1779502244000,-1488.96,0.00014,2]
[422837208,1779502244000,-326.97,0.00014,2]
[422837209,1779502244000,-324.23,0.00014,2]
[422837207,1779502244000,-250.0,0.00014,2]
[422837217,1779502244000,-166.66,0.0001411,2]
[422837213,1779502244000,-5256.5353757,0.00014032,2]
[422837210,1779502244000,-164.98,0.00014018,2]
[422837216,1779502244000,-10528.24645258,0.0001404,2]
[422837215,1779502244000,-1588.0,0.0001404,2]
[422837218,1779502244000,-165.31,0.0001413,2]
[422837214,1779502244000,-11253.28523923,0.00014039,2]
[422837219,1779502244000,-304.72347668,0.0001415,2]
[422837212,1779502244000,-1155.4351733,0.00014032,2]
[422837229,1779502244000,-500.0,0.00014249,2]
[422837211,1779502244000,-10377.1371297,0.00014032,2]
[422837222,1779502244000,-1224.0,0.00014151,2]
[422837287,1779502244000,-1206.21215852,0.000148,2]
[422837224,1779502244000,-3635.0,0.00014151,2]
[422837223,1779502244000,-6060.0,0.00014151,2]
[422837226,1779502244000,-37154.18738249,0.000142,2]
[422837235,1779502244000,-143214.72790763,0.0001425,2]
[422837234,1779502244000,-417.13114333,0.00014249,2]
[422837236,1779502244000,-4476.354568,0.0001425,2]
[422837225,1779502244000,-1747.45404254,0.00014186,2]
[422837227,1779502244000,-166.66,0.00014247,2]
[422837232,1779502244000,-300.0,0.00014249,2]
[422837228,1779502244000,-500.0,0.00014249,2]
[422837233,1779502244000,-300.0,0.00014249,2]
[422837220,1779502244000,-5000.0,0.0001415,2]
[422837285,1779502244000,-1172.8915802,0.00014776,2]
[422837231,1779502244000,-500.0,0.00014249,2]
[422837300,1779502244000,-350.0,0.00014882,2]
[422837372,1779502244000,-500.0,0.00014999,2]
[422837373,1779502244000,-500.0,0.00014999,2]
[422837376,1779502244000,-197.49342213,0.00014999,2]
[422837378,1779502244000,-500.0,0.00014999,2]
[422837377,1779502244000,-500.0,0.00014999,2]
[422837374,1779502244000,-500.0,0.00014999,2]
[422837366,1779502244000,-500.0,0.00014999,2]
[422837361,1779502244000,-1098.07046975,0.00014999,5]
[422837371,1779502244000,-500.0,0.00014999,2]
[422837363,1779502244000,-3332.9134015,0.00014999,2]
[422837368,1779502244000,-500.0,0.00014999,2]
[422837367,1779502244000,-500.0,0.00014999,2]
[422837370,1779502244000,-500.0,0.00014999,2]
[422837359,1779502244000,-1098.07046975,0.00014999,5]
[422837369,1779502244000,-500.0,0.00014999,2]
[422837382,1779502244000,-500.0,0.00014999,2]
[422837385,1779502244000,-500.0,0.00014999,2]
[422837387,1779502244000,-500.0,0.00014999,2]
[422837391,1779502244000,-455.46575353,0.00014999,2]
[422837395,1779502244000,-500.0,0.00014999,2]
[422837389,1779502244000,-508.25566935,0.00014999,2]
[422837397,1779502244000,-500.0,0.00014999,2]
[422837400,1779502244000,-500.0,0.00014999,2]
[422837394,1779502244000,-500.0,0.00014999,2]
[422837402,1779502244000,-455.94982552,0.00014999,2]
[422837406,1779502244000,-264235.4341471,0.00015,2]
[422837404,1779502244000,-15000.0,0.00015,2]
[422837289,1779502244000,-400.0,0.000148,5]
[422837380,1779502244000,-500.0,0.00014999,2]
[422837354,1779502244000,-10000.0,0.00014963,2]
[422837252,1779502244000,-1295.47,0.00014497,2]
[422837356,1779502244000,-213.6456078,0.0001499,2]
[422837357,1779502244000,-1093.85407049,0.00014999,5]
[422837293,1779502244000,-6111.0,0.00014825,2]
[422837295,1779502244000,-200.0,0.00014879,2]
[422837302,1779502244000,-305.63426364,0.00014899,2]
[422837297,1779502244000,-200.0,0.0001488,2]
[422837317,1779502244000,-250119.0,0.000149,2]
[422837316,1779502244000,-500.0,0.00014899,2]
[422837306,1779502244000,-500.0,0.00014899,2]
[422837319,1779502244000,-372.50597532,0.000149,3]
[422837321,1779502244000,-1533.31215095,0.000149,2]
[422837323,1779502244000,-400.0,0.000149,5]
[422837325,1779502244000,-25000.0,0.000149,3]
[422837308,1779502244000,-500.0,0.00014899,2]
[422837313,1779502244000,-500.0,0.00014899,2]
[422837304,1779502244000,-300.0,0.00014899,2]
[422837310,1779502244000,-500.0,0.00014899,2]
[422837327,1779502244000,-3761.46059186,0.000149,2]
[422837352,1779502244000,-2000.0,0.00014959,7]
[422837336,1779502244000,-400.0,0.000149,5]
[422837347,1779502244000,-1037.95393458,0.00014927,2]
[422837346,1779502244000,-10000.0,0.00014926,2]
[422837339,1779502244000,-2398.86879265,0.000149,2]
[422837291,1779502244000,-400.0,0.000148,5]
[422837350,1779502244000,-164.0,0.00014959,2]
[422837334,1779502244000,-304.72347666,0.000149,2]
[422837331,1779502244000,-7659.41839253,0.000149,2]
[422837343,1779502244000,-150.0,0.00014925,2]
[422837329,1779502244000,-1747.45404254,0.000149,2]
[422837312,1779502244000,-500.0,0.00014899,2]
[422837341,1779502244000,-164.0,0.00014908,2]
[422837416,1779502245000,-20.53,9.365e-05,2]
[422837407,1779502245000,-843.821,0.00015,2]
[422837409,1779502245000,154.69,8.064e-05,2]
[422837408,1779502245000,-182433.38318868,0.00015,2]
[422837410,1779502245000,-540.39948962,0.00015,2]
[422837411,1779502245000,-317.893275,0.00015,2]
[422837413,1779502245000,154.69,8.585e-05,2]
[422837412,1779502245000,154.69,8.324e-05,2]
[422837421,1779502245000,-419.169,0.00011178,2]
[422837414,1779502245000,-154.69,8.845e-05,2]
[422837417,1779502245000,-134.16,9.365e-05,2]
[422837419,1779502245000,-294.36082865,0.00012777,2]
[422837418,1779502245000,-160.0,0.00011487,2]
[422837420,1779502245000,-126739.17739983,0.00015,2]
[422837423,1779502245000,-1118.29677384,0.00015,2]
[422837422,1779502245000,-461421.10178912,0.00015,2]
[422837415,1779502245000,-154.69,9.105e-05,2]
[422837428,1779502246000,-335.819307,0.00014178,2]
[422837429,1779502247000,-82.180693,0.00014178,2]
[422837430,1779502247000,-1476.68674348,0.000147,2]
[422837529,1779502267000,-2750.6227182,0.000147,2]
[422837530,1779502293000,1099.64347239,8.688e-05,3]
[422837531,1779502294000,1099.64347239,8.688e-05,3]
[422837532,1779502294000,1099.64347238,8.688e-05,3]
[422837533,1779502303000,500.0,8.8e-05,3]
[422837534,1779502306000,1100.0,8.9e-05,3]
[422837535,1779502308000,1600.0,9e-05,3]
[422837536,1779502315000,408.3468,8.587e-05,2]
[422837537,1779502318000,7783.52348462,8.589e-05,2]
[422837538,1779502322000,199.06318844,8.489e-05,2]
[422837539,1779502408000,170.121,8.515e-05,2]
[422837540,1779502408000,1847.772,8.515e-05,2]
[422837541,1779502460000,37125.1383,8.589e-05,2]
[422837542,1779502572000,690.0,0.00028,120]
[422837543,1779502636000,630.34563645,0.00028,120]
[422837545,1779502923000,5578.6,8.474e-05,2]
[422837547,1779502949000,169.7,8.388e-05,2]
[422837549,1779502990000,164.2,8.584e-05,2]
[422837551,1779503008000,1478.217,8.515e-05,2]
[422837552,1779503008000,170.121,8.515e-05,2]
[422837553,1779503018000,6399.5,8.199e-05,2]
[422837554,1779503104000,200.0,8.227e-05,2]
[422837555,1779503104000,155.30247671,8.236e-05,2]
[422837557,1779503106000,150.0,8.236e-05,2]
[422837558,1779503106000,150.0,8.327e-05,2]
[422837556,1779503106000,150.16733597,8.236e-05,2]
[422837559,1779503107000,150.0,8.419e-05,2]
[422837561,1779503107000,150.0,8.602e-05,2]
[422837560,1779503107000,150.0,8.51e-05,2]
[422837563,1779503107000,151.85491801,8.236e-05,2]
[422837562,1779503107000,150.10146032,8.236e-05,2]
[422837570,1779503111000,150.0,8.588e-05,2]
[422837568,1779503111000,150.0,8.447e-05,2]
[422837569,1779503111000,150.0,8.517e-05,2]
[422837567,1779503111000,150.0,8.376e-05,2]
[422837566,1779503111000,150.0,8.306e-05,2]
[422837565,1779503111000,150.0,8.236e-05,2]
[422837564,1779503111000,150.0,8.236e-05,2]
[422837571,1779503114000,150.39949694,8.236e-05,2]
[422837572,1779503114000,150.0,8.236e-05,2]
[422837577,1779503119000,150.0,8.568e-05,2]
[422837574,1779503119000,150.0,8.319e-05,2]
[422837575,1779503119000,150.0,8.402e-05,2]
[422837576,1779503119000,150.0,8.485e-05,2]
[422837573,1779503119000,150.0,8.236e-05,2]
[422837578,1779503124000,202.81057075,8.236e-05,2]
[422837579,1779503124000,150.0,8.236e-05,2]
[422837581,1779503124000,150.0,8.269e-05,2]
[422837583,1779503124000,150.0,8.302e-05,2]
[422837582,1779503124000,150.0,8.286e-05,2]
[422837580,1779503124000,150.0,8.252e-05,2]
[422837585,1779503125000,150.0,8.335e-05,2]
[422837586,1779503125000,150.0,8.352e-05,2]
[422837587,1779503125000,150.0,8.369e-05,2]
[422837588,1779503125000,150.0,8.385e-05,2]
[422837590,1779503125000,150.0,8.419e-05,2]
[422837584,1779503125000,150.0,8.319e-05,2]
[422837593,1779503125000,150.0,8.469e-05,2]
[422837591,1779503125000,150.0,8.435e-05,2]
[422837596,1779503125000,150.0,8.518e-05,2]
[422837597,1779503125000,150.0,8.535e-05,2]
[422837589,1779503125000,150.0,8.402e-05,2]
[422837595,1779503125000,150.0,8.502e-05,2]
[422837592,1779503125000,150.0,8.452e-05,2]
[422837594,1779503125000,150.0,8.485e-05,2]
[422837598,1779503126000,150.0,8.552e-05,2]
[422837599,1779503126000,150.0,8.568e-05,2]
[422837600,1779503126000,150.0,8.585e-05,2]
[422837601,1779503126000,150.0,8.602e-05,2]
[422837602,1779503126000,150.0,8.618e-05,2]
[422837603,1779503126000,150.0,8.635e-05,2]
[422837608,1779503128000,150.0,8.541e-05,2]
[422837607,1779503128000,150.0,8.464e-05,2]
[422837605,1779503128000,150.0,8.312e-05,2]
[422837606,1779503128000,150.0,8.388e-05,2]
[422837604,1779503128000,150.0,8.236e-05,2]
[422837609,1779503128000,150.0,8.617e-05,2]
[422837610,1779503139000,164.61,6.221e-05,2]
[422837611,1779503224000,500.0,8.7e-05,3]
[422837612,1779503226000,1100.0,8.8e-05,3]
[422837613,1779503228000,1600.0,8.9e-05,3]
[422837614,1779503230000,2200.0,9e-05,3]
[422837623,1779503269000,-371.76940857,8.678e-05,2]
[422837621,1779503269000,-1200.0,8.676e-05,2]
[422837622,1779503269000,-200.23059143,8.677e-05,2]
[422837618,1779503269000,-150.0,8.658e-05,2]
[422837620,1779503269000,-150.0,8.668e-05,2]
[422837619,1779503269000,-250.0,8.667e-05,2]
[422837616,1779503269000,-150.0,8.652e-05,2]
[422837617,1779503269000,-6978.0,8.658e-05,2]
[422837615,1779503269000,-150.0,8.652e-05,2]
[422837625,1779503332000,828.37,7.926e-05,2]
[422837626,1779503341000,1000.0,0.00028081,120]
[422837627,1779503366000,611651.01265368,8.588e-05,2]
[422837633,1779503431000,-1200.0,8.587e-05,2]
[422837632,1779503431000,-500.0,8.587e-05,2]
[422837631,1779503431000,-500.0,8.587e-05,2]
[422837636,1779503431000,-32042.38256184,8.588e-05,2]
[422837635,1779503431000,-140674.56461508,8.588e-05,2]
[422837634,1779503431000,-150.0,8.587e-05,2]
[422837667,1779503432000,-493.25,8.588e-05,2]
[422837666,1779503432000,-699.20288059,8.588e-05,2]
[422837665,1779503432000,-2033.70262742,8.588e-05,2]
[422837664,1779503432000,-633.18494042,8.588e-05,2]
[422837662,1779503432000,-298.07277222,8.587e-05,2]
[422837663,1779503432000,-518.78999565,8.587e-05,2]
[422837681,1779503437000,-792.5327895,8.587e-05,2]
[422837683,1779503437000,-792.5327895,8.587e-05,2]
[422837686,1779503437000,-45.69046167,8.587e-05,2]
[422837684,1779503437000,-792.5327895,8.587e-05,2]
[422837676,1779503437000,-792.5327895,8.587e-05,2]
[422837680,1779503437000,-792.5327895,8.587e-05,2]
[422837679,1779503437000,-792.5327895,8.587e-05,2]
[422837678,1779503437000,-792.5327895,8.587e-05,2]
[422837685,1779503437000,-792.5327895,8.587e-05,2]
[422837682,1779503437000,-792.5327895,8.587e-05,2]
[422837689,1779503437000,-792.5327895,8.587e-05,2]
[422837677,1779503437000,-792.5327895,8.587e-05,2]
[422837692,1779503437000,-792.5327895,8.587e-05,2]
[422837691,1779503437000,-792.5327895,8.587e-05,2]
[422837688,1779503437000,-329.92169264,8.587e-05,2]
[422837687,1779503437000,-416.92063519,8.587e-05,2]
[422837694,1779503437000,-792.5327895,8.587e-05,2]
[422837693,1779503437000,-792.5327895,8.587e-05,2]
[422837695,1779503437000,-792.5327895,8.587e-05,2]
[422837697,1779503437000,-792.5327895,8.587e-05,2]
[422837696,1779503437000,-792.5327895,8.587e-05,2]
[422837690,1779503437000,-792.5327895,8.587e-05,2]
[422837698,1779503437000,-792.5327895,8.587e-05,2]
[422837699,1779503437000,-204.75041236,8.587e-05,2]
[422837700,1779503438000,-587.78237714,8.587e-05,2]
[422837702,1779503438000,-211796.9042515,8.588e-05,2]
[422837704,1779503438000,-264.7535728,8.587e-05,2]
[422837703,1779503438000,-792.5327895,8.587e-05,2]
[422837701,1779503438000,-792.5327895,8.587e-05,2]
[422837728,1779503440000,-792.5327895,8.587e-05,2]
[422837725,1779503440000,-792.5327895,8.587e-05,2]
[422837727,1779503440000,-792.5327895,8.587e-05,2]
[422837732,1779503440000,-792.5327895,8.587e-05,2]
[422837733,1779503440000,-792.5327895,8.587e-05,2]
[422837726,1779503440000,-792.5327895,8.587e-05,2]
[422837730,1779503440000,-792.5327895,8.587e-05,2]
[422837740,1779503440000,-792.5327895,8.587e-05,2]
[422837751,1779503440000,-184.0,8.722e-05,2]
[422837745,1779503440000,-26478.48703235,8.678e-05,2]
[422837744,1779503440000,-1080080.00096947,8.588e-05,2]
[422837743,1779503440000,-792.5327895,8.587e-05,2]
[422837741,1779503440000,-792.5327895,8.587e-05,2]
[422837749,1779503440000,-150.0,8.701e-05,2]
[422837748,1779503440000,-150.0,8.693e-05,2]
[422837723,1779503440000,-792.5327895,8.587e-05,2]
[422837752,1779503440000,-150.0,8.728e-05,2]
[422837742,1779503440000,-792.5327895,8.587e-05,2]
[422837739,1779503440000,-792.5327895,8.587e-05,2]
[422837718,1779503440000,-792.5327895,8.587e-05,2]
[422837737,1779503440000,-792.5327895,8.587e-05,2]
[422837750,1779503440000,-150.0,8.718e-05,2]
[422837710,1779503440000,-792.5327895,8.587e-05,2]
[422837709,1779503440000,-527.7792167,8.587e-05,2]
[422837711,1779503440000,-792.5327895,8.587e-05,2]
[422837712,1779503440000,-50.85888685,8.587e-05,2]
[422837714,1779503440000,-792.5327895,8.587e-05,2]
[422837713,1779503440000,-741.67390265,8.587e-05,2]
[422837715,1779503440000,-792.5327895,8.587e-05,2]
[422837717,1779503440000,-792.5327895,8.587e-05,2]
[422837722,1779503440000,-792.5327895,8.587e-05,2]
[422837716,1779503440000,-792.5327895,8.587e-05,2]
[422837719,1779503440000,-792.5327895,8.587e-05,2]
[422837721,1779503440000,-792.5327895,8.587e-05,2]
[422837720,1779503440000,-792.5327895,8.587e-05,2]
[422837724,1779503440000,-792.5327895,8.587e-05,2]
[422837735,1779503440000,-792.5327895,8.587e-05,2]
[422837736,1779503440000,-792.5327895,8.587e-05,2]
[422837738,1779503440000,-792.5327895,8.587e-05,2]
[422837747,1779503440000,-150.0,8.693e-05,2]
[422837746,1779503440000,-150.0,8.685e-05,2]
[422837754,1779503440000,-150.0,8.735e-05,2]
[422837768,1779503440000,-150.0,8.818e-05,2]
[422837777,1779503440000,-150.0,8.868e-05,2]
[422837780,1779503440000,-150.0,8.884e-05,2]
[422837779,1779503440000,-150.0,8.876e-05,2]
[422837778,1779503440000,-150.0,8.869e-05,2]
[422837782,1779503440000,-150.0,8.901e-05,2]
[422837793,1779503440000,-150.0,8.984e-05,2]
[422837792,1779503440000,-150.0,8.968e-05,2]
[422837771,1779503440000,-150.0,8.846e-05,2]
[422837781,1779503440000,-150.0,8.901e-05,2]
[422837789,1779503440000,-4882.69748442,8.941e-05,2]
[422837787,1779503440000,-164.2,8.939e-05,2]
[422837788,1779503440000,-150.0,8.94e-05,2]
[422837791,1779503440000,-150.0,8.968e-05,2]
[422837790,1779503440000,-150.0,8.951e-05,2]
[422837784,1779503440000,-150.0,8.918e-05,2]
[422837786,1779503440000,-150.0,8.934e-05,2]
[422837753,1779503440000,-150.0,8.735e-05,2]